bitfinex/quotes_SOLUSD_20251223
["timestamp","ask_amount","ask_price","bid_price","bid_amount"]
[1766503346682,0.72,123.45,123.39,0.67]
[1766503346878,8.51110333,123.45,123.41,8.46110333]
[1766503347075,7.79110333,123.45,123.41,8.46110333]
[1766503347312,7.79110333,123.45,123.34,54.45590163]
[1766503347313,7.79110333,123.43,123.35,15.61070125]
[1766503347475,8.51110333,123.43,123.39,0.67]
[1766503348004,0.72,123.45,123.4,7.79110333]
[1766503348302,8.51110333,123.45,123.41,0.67]
[1766503348483,7.79110333,123.44,123.39,8.10420237]
[1766503348683,8.51110333,123.43,123.39,8.46110333]
[1766503350100,7.79110333,123.42,123.38,8.46110333]
[1766503350303,7.79110333,123.41,123.36,0.67]
[1766503350599,7.79110333,123.41,123.36,8.46110333]
[1766503350600,8.51110333,123.41,123.36,8.46110333]
[1766503350781,7.79110333,123.4,123.36,8.46110333]
[1766503351179,8.51110333,123.41,123.36,8.46110333]
[1766503351480,7.79110333,123.4,123.36,8.46110333]
[1766503352101,7.79110333,123.4,123.36,0.67]
[1766503352285,7.79110333,123.38,123.35,14.8]
[1766503353095,7.79110333,123.37,123.35,14.8]
[1766503353303,7.79110333,123.37,123.33,7.79110333]
[1766503353304,0.66,123.37,123.33,8.51110333]
[1766503353505,18.22877629,123.38,123.34,0.72]
[1766503353686,18.88877629,123.38,123.34,0.72]
[1766503353881,7.79110333,123.37,123.34,0.72]
[1766503354200,11.09767296,123.38,123.33,0.72]
[1766503354505,7.79110333,123.37,123.33,8.51110333]
[1766503354914,11.09767296,123.38,123.33,8.51110333]
[1766503354915,18.88877629,123.38,123.34,8.51110333]
[1766503355413,7.79110333,123.41,123.37,8.51110333]
[1766503355586,7.79110333,123.4,123.37,0.72]
[1766503355781,7.79110333,123.39,123.35,0.72]
[1766503355977,20.25262955,123.45,123.36,0.72]
[1766503355978,7.79110333,123.4,123.36,0.72]
[1766503356294,7.79110333,123.4,123.37,0.72]
[1766503356491,7.79110333,123.39,123.35,7.79110333]
[1766503356708,7.79110333,123.37,123.33,16.57936859]
[1766503356895,7.79110333,123.37,123.34,0.68]
[1766503357096,7.79110333,123.37,123.35,0.68]
[1766503358199,7.79110333,123.38,123.35,0.68]
[1766503358792,7.79110333,123.37,123.35,0.68]
[1766503358994,10.43767296,123.39,123.35,0.68]
[1766503359191,7.79110333,123.37,123.35,0.68]
[1766503359912,7.79110333,123.4,123.36,0.68]
[1766503360283,7.79110333,123.39,123.36,0.68]
[1766503360486,7.79110333,123.38,123.33,8.10810078]
[1766503360691,0.66,123.39,123.34,0.68]
[1766503360890,7.79110333,123.37,123.34,0.68]
[1766503361488,0.66,123.39,123.34,0.68]
[1766503361689,7.79110333,123.37,123.34,0.68]
[1766503361889,0.66,123.39,123.34,0.68]
[1766503362117,7.79110333,123.38,123.34,0.68]
[1766503362318,0.66,123.39,123.34,0.68]
[1766503362496,7.79110333,123.37,123.34,0.68]
[1766503362899,7.79110333,123.38,123.35,0.68]
[1766503363829,10.43767296,123.41,123.37,0.68]
[1766503364008,11.09767296,123.42,123.37,0.68]
[1766503364313,18.22877629,123.42,123.39,0.68]
[1766503364908,10.43767296,123.42,123.39,0.68]
[1766503365109,7.79110333,123.4,123.37,0.68]
[1766503365496,7.79110333,123.39,123.37,0.68]
[1766503365715,7.79110333,123.39,123.35,15.48]
[1766503365905,0.66,123.4,123.35,15.48]
[1766503366105,7.79110333,123.39,123.35,15.48]
[1766503366312,7.79110333,123.37,123.35,14.8]
[1766503366536,7.79110333,123.36,123.31,0.68]
[1766503366690,7.79110333,123.36,123.28,8.79122859]
[1766503366691,7.79110333,123.32,123.28,8.79122859]
[1766503366896,7.79110333,123.32,123.29,0.68]
[1766503367218,7.79110333,123.32,123.3,0.68]
[1766503367424,7.79110333,123.33,123.3,0.68]
[1766503367626,7.79110333,123.32,123.3,0.68]
[1766503367944,10.43767296,123.36,123.28,0.68]
[1766503367945,7.79110333,123.31,123.28,0.68]
[1766503368250,7.79110333,123.3,123.27,15.48]
[1766503368617,7.79110333,123.29,123.27,14.8]
[1766503369236,0.66,123.31,123.27,14.8]
[1766503369429,7.79110333,123.3,123.27,14.8]
[1766503371227,7.79110333,123.29,123.27,14.8]
[1766503371426,7.79110333,123.28,123.23,7.99110333]
[1766503371733,7.79110333,123.26,123.24,0.68]
[1766503372027,7.79110333,123.27,123.24,0.68]
[1766503372439,7.79110333,123.26,123.23,0.2]
[1766503372609,8.111152,123.29,123.23,0.2]
[1766503372610,7.79110333,123.25,123.23,0.2]
[1766503373637,7.79110333,123.26,123.23,0.2]
[1766503374133,7.79110333,123.24,123.23,0.2]
[1766503375825,0.66,123.26,123.23,0.2]
[1766503376027,7.79110333,123.24,123.23,0.2]
[1766503376822,0.66,123.26,123.23,0.2]
[1766503377011,7.79110333,123.24,123.23,0.2]
[1766503377213,7.79110333,123.24,123.2,0.88]
[1766503377406,7.79110333,123.23,123.2,0.88]
[1766503377628,8.11303422,123.26,123.21,0.68]
[1766503377824,7.79110333,123.25,123.21,0.68]
[1766503378227,7.79110333,123.26,123.22,8.47110333]
[1766503378745,21.08703489,123.3,123.23,7.79110333]
[1766503378746,1.4703071,123.3,123.23,7.79110333]
[1766503379041,7.79110333,123.28,123.25,0.68]
[1766503379333,7.79110333,123.29,123.25,0.68]
[1766503379516,11.09767296,123.3,123.25,0.68]
[1766503379708,7.79110333,123.29,123.25,0.68]
[1766503379914,7.79110333,123.28,123.25,0.68]
[1766503380129,7.79110333,123.27,123.23,8.47110333]
[1766503380523,7.79110333,123.26,123.23,0.68]
[1766503380718,10.43767296,123.29,123.22,8.11543032]
[1766503380923,7.79110333,123.28,123.24,7.79110333]
[1766503381124,7.79110333,123.27,123.24,0.68]
[1766503381437,7.79110333,123.26,123.23,0.68]
[1766503381926,7.79110333,123.27,123.23,7.79110333]
[1766503382134,7.79110333,123.27,123.24,0.68]
[1766503383039,7.79110333,123.26,123.21,26.04929539]
[1766503383228,7.79110333,123.25,123.22,0.68]
[1766503384637,8.11186856,123.28,123.22,8.47110333]
[1766503384815,8.45110333,123.27,123.23,0.68]
[1766503385149,7.79110333,123.28,123.25,0.68]
[1766503387245,7.79110333,123.28,123.22,8.92692136]
[1766503387246,7.79110333,123.26,123.22,0.67]
[1766503387416,7.79110333,123.27,123.23,8.46110333]
[1766503387622,7.79110333,123.26,123.23,0.67]
[1766503388025,4.79762415,123.26,123.23,0.67]
[1766503388241,4.79762415,123.27,123.23,0.67]
[1766503388658,4.79762415,123.27,123.23,5.46762415]
[1766503389534,4.79762415,123.29,123.25,4.79762415]
[1766503389846,4.79762415,123.29,123.26,0.67]
[1766503390452,4.79762415,123.27,123.21,0.67]
[1766503390746,11.15767296,123.28,123.23,5.46762415]
[1766503391148,4.79762415,123.27,123.23,5.46762415]
[1766503392351,4.79762415,123.26,123.2,9.12835803]
[1766503392530,4.79762415,123.24,123.21,0.67]
[1766503392730,4.79762415,123.23,123.21,0.67]
[1766503393630,0.72,123.25,123.21,0.67]
[1766503393939,4.79762415,123.24,123.21,0.67]
[1766503394143,0.72,123.25,123.2,0.2]
[1766503394347,4.79762415,123.23,123.2,0.2]
[1766503394532,11.15767296,123.25,123.2,5.66762415]
[1766503394846,4.79762415,123.23,123.2,0.87]
[1766503395380,0.72,123.23,123.2,0.2]
[1766503395524,4.79762415,123.21,123.2,0.2]
[1766503395725,10.43767296,123.22,123.2,0.2]
[1766503396130,4.79762415,123.21,123.2,0.2]
[1766503397148,0.72,123.2,123.17,0.2]
[1766503397356,4.79762415,123.17,123.16,0.2]
[1766503398524,4.79762415,123.17,123.14,0.67]
[1766503398836,0.46,123.18,123.15,0.87]
[1766503398837,4.79762415,123.18,123.15,0.87]
[1766503399346,4.79762415,123.17,123.15,0.87]
[1766503399551,4.79762415,123.17,123.15,0.2]
[1766503399932,4.79762415,123.16,123.15,0.2]
[1766503400769,0.46,123.18,123.15,0.2]
[1766503400933,4.79762415,123.16,123.15,0.2]
[1766503401829,5.15762415,123.16,123.13,0.2]
[1766503402029,4.79762415,123.15,123.13,0.2]
[1766503402464,4.79762415,123.14,123.13,0.2]
[1766503402864,4.79762415,123.14,123.12,0.2]
[1766503403161,4.79762415,123.13,123.12,0.2]
[1766503403559,4.79762415,123.15,123.12,0.87]
[1766503404056,4.79762415,123.14,123.12,0.87]
[1766503404432,0.36,123.18,123.13,0.67]
[1766503404656,4.79762415,123.17,123.14,0.67]
[1766503405839,4.79762415,123.16,123.14,0.67]
[1766503406043,4.79762415,123.17,123.14,0.67]
[1766503406446,10.79767296,123.19,123.14,0.67]
[1766503406958,4.79762415,123.16,123.12,0.87]
[1766503407154,4.79762415,123.16,123.13,0.67]
[1766503407341,0.36,123.18,123.13,0.67]
[1766503407541,10.43767296,123.19,123.13,0.67]
[1766503407747,4.79762415,123.16,123.13,0.67]
[1766503408957,0.36,123.18,123.13,0.67]
[1766503409256,4.79762415,123.17,123.13,0.67]
[1766503409669,4.79762415,123.17,123.13,13.58899639]
[1766503409840,10.43767296,123.19,123.16,0.67]
[1766503409841,4.79762415,123.19,123.16,0.67]
[1766503410482,4.79762415,123.19,123.14,5.46762415]
[1766503410764,4.79762415,123.18,123.14,0.67]
[1766503411263,4.79762415,123.21,123.18,0.67]
[1766503411761,4.79762415,123.2,123.16,5.46762415]
[1766503411948,4.79762415,123.19,123.16,0.67]
[1766503412541,10.79767296,123.21,123.16,0.67]
[1766503412738,4.79762415,123.19,123.16,0.67]
[1766503413047,4.79762415,123.18,123.16,0.67]
[1766503413251,4.79762415,123.19,123.16,0.67]
[1766503413564,10.43767296,123.21,123.15,0.71]
[1766503413764,4.79762415,123.19,123.15,0.71]
[1766503414059,0.36,123.2,123.15,0.71]
[1766503414251,4.79762415,123.18,123.15,0.71]
[1766503414764,10.43767296,123.21,123.17,4.79762415]
[1766503414938,15.23529711,123.21,123.18,0.71]
[1766503415488,10.43767296,123.21,123.18,0.71]
[1766503415638,5.60793125,123.27,123.19,4.79762415]
[1766503415837,4.79762415,123.22,123.19,0.71]
[1766503416036,4.79762415,123.22,123.18,5.50762415]
[1766503416473,4.79762415,123.22,123.19,0.71]
[1766503416639,10.43767296,123.24,123.21,0.66]
[1766503416843,4.79762415,123.26,123.22,0.66]
[1766503417268,4.79762415,123.24,123.2,5.45762415]
[1766503417470,4.79762415,123.23,123.2,0.66]
[1766503417853,4.79762415,123.22,123.18,13.5756177]
[1766503418053,4.79762415,123.22,123.19,0.66]
[1766503418240,4.79762415,123.23,123.19,0.66]
[1766503418440,4.79762415,123.23,123.2,0.66]
[1766503418943,4.79762415,123.25,123.21,0.66]
[1766503419145,4.79762415,123.25,123.22,0.66]
[1766503419346,4.79762415,123.24,123.22,0.66]
[1766503419750,4.79762415,123.25,123.22,0.66]
[1766503420277,10.79767296,123.26,123.22,0.66]
[1766503420479,4.79762415,123.25,123.22,0.66]
[1766503421285,15.23529711,123.26,123.22,4.79762415]
[1766503421450,15.23529711,123.26,123.23,0.66]
[1766503422175,10.43767296,123.26,123.23,0.66]
[1766503422376,0.8103071,123.3,123.23,0.66]
[1766503422683,4.79762415,123.27,123.23,5.45762415]
[1766503422988,4.79762415,123.26,123.2,8.11660172]
[1766503423165,4.79762415,123.26,123.22,5.45762415]
[1766503423360,8.47188497,123.28,123.23,0.66]
[1766503423567,4.79762415,123.26,123.23,0.66]
[1766503424565,4.79762415,123.25,123.21,0.66]
[1766503424785,4.79762415,123.24,123.21,0.66]
[1766503425086,0.36,123.26,123.21,0.66]
[1766503425286,4.79762415,123.24,123.21,0.66]
[1766503425859,4.79762415,123.25,123.22,0.66]
[1766503426162,4.79762415,123.24,123.22,0.66]
[1766503426362,4.79762415,123.25,123.22,0.66]
[1766503426665,4.79762415,123.23,123.2,0.66]
[1766503427956,4.79762415,123.22,123.18,0.66]
[1766503428280,4.79762415,123.2,123.15,22.93999856]
[1766503428484,4.79762415,123.2,123.17,0.66]
[1766503429068,0.36,123.22,123.17,0.66]
[1766503429069,4.79762415,123.21,123.17,0.66]
[1766503429289,4.79762415,123.22,123.18,0.66]
[1766503429759,0.36,123.24,123.18,0.66]
[1766503429960,4.79762415,123.22,123.18,0.66]
[1766503430364,4.79762415,123.21,123.18,0.66]
[1766503433578,10.43767296,123.23,123.18,0.66]
[1766503433785,4.79762415,123.21,123.18,0.66]
[1766503434086,10.79767296,123.23,123.18,0.66]
[1766503434388,15.23529711,123.23,123.19,0.66]
[1766503434583,4.79762415,123.23,123.2,0.66]
[1766503434787,4.79762415,123.24,123.2,0.66]
[1766503435293,4.79762415,123.23,123.2,0.66]
[1766503435468,4.79762415,123.22,123.18,0.66]
[1766503435669,4.79762415,123.21,123.18,0.66]
[1766503437097,0.36,123.23,123.18,0.66]
[1766503437262,4.79762415,123.22,123.18,0.66]
[1766503438571,11.24798006,123.25,123.19,0.66]
[1766503438790,4.79762415,123.22,123.19,0.66]
[1766503439886,4.79762415,123.23,123.2,0.66]
[1766503440194,4.79762415,123.24,123.2,0.66]
[1766503440401,0.36,123.28,123.23,0.66]
[1766503440699,4.79762415,123.25,123.22,0.66]
[1766503440873,0.36,123.26,123.22,0.66]
[1766503441376,0.36,123.28,123.22,0.66]
[1766503441593,4.79762415,123.26,123.22,0.66]
[1766503441777,4.79762415,123.26,123.2,8.11660617]
[1766503441778,4.79762415,123.24,123.2,0.66]
[1766503441976,0.36,123.26,123.2,0.66]
[1766503441977,4.79762415,123.23,123.2,0.66]
[1766503442178,0.36,123.25,123.2,0.66]
[1766503442374,4.79762415,123.23,123.2,0.66]
[1766503443994,8.11310231,123.26,123.2,0.66]
[1766503444194,4.79762415,123.23,123.19,4.79762415]
[1766503444505,4.79762415,123.23,123.19,5.45762415]
[1766503444671,5.15762415,123.23,123.19,5.45762415]
[1766503445070,4.79762415,123.23,123.19,0.66]
[1766503445283,4.79762415,123.23,123.19,4.79762415]
[1766503445502,0.36,123.2,123.17,10.43767296]
[1766503445673,0.8103071,123.24,123.14,14.82]
[1766503445869,4.79762415,123.19,123.15,13.57753736]
[1766503446086,5.15762415,123.21,123.16,13.57711347]
[1766503446294,5.15762415,123.21,123.17,4.79762415]
[1766503446475,5.15762415,123.21,123.17,5.45762415]
[1766503446675,5.15762415,123.21,123.17,0.66]
[1766503447092,5.15762415,123.21,123.16,13.62711347]
[1766503448112,0.36,123.21,123.16,8.82948932]
[1766503448278,2.28081104,123.21,123.16,8.82948932]
[1766503448479,2.28081104,123.2,123.16,0.71]
[1766503448906,2.28081104,123.2,123.16,2.63081104]
[1766503449088,0.36,123.2,123.16,2.63081104]
[1766503449715,2.28081104,123.19,123.14,2.63081104]
[1766503449999,3.36245392,123.19,123.14,14.15012688]
[1766503450202,3.00245392,123.19,123.15,0.71]
[1766503450418,3.00245392,123.18,123.15,0.71]
[1766503450579,3.00245392,123.17,123.13,3.71245392]
[1766503450778,3.00245392,123.17,123.13,0.71]
[1766503451006,0.36,123.19,123.12,13.64012688]
[1766503451226,3.36245392,123.16,123.12,0.91]
[1766503451381,3.36245392,123.15,123.12,0.2]
[1766503451590,3.00245392,123.14,123.12,0.2]
[1766503451981,7.81247521,123.14,123.12,0.2]
[1766503453309,0.36,123.15,123.12,0.2]
[1766503453508,7.81247521,123.13,123.12,0.2]
[1766503454005,8.17247521,123.14,123.12,0.2]
[1766503454183,0.36,123.16,123.12,0.2]
[1766503454491,7.81247521,123.14,123.12,0.2]
[1766503456911,7.81247521,123.13,123.12,0.2]
[1766503457080,16.43525752,123.13,123.09,0.2]
[1766503457281,8.12093619,123.14,123.09,0.2]
[1766503457520,8.93067131,123.15,123.09,0.2]
[1766503457705,7.81247521,123.11,123.09,0.2]
[1766503459226,7.81247521,123.1,123.09,0.2]
[1766503459908,7.81247521,123.1,123.09,0.04]
[1766503460694,0.8103071,123.12,123.09,0.04]
[1766503461009,7.81247521,123.1,123.09,0.04]
[1766503462308,0.8103071,123.16,123.09,0.75]
[1766503462629,18.25014817,123.12,123.09,0.04]
[1766503462926,7.81247521,123.13,123.09,0.04]
[1766503463227,8.11897412,123.17,123.1,0.71]
[1766503463396,7.81247521,123.15,123.1,0.71]
[1766503463603,7.81247521,123.15,123.1,8.52247521]
[1766503463822,7.81247521,123.14,123.1,8.52247521]
[1766503464396,10.43767296,123.16,123.09,0.75]
[1766503464397,7.81247521,123.13,123.09,0.75]
[1766503465220,7.81247521,123.14,123.1,0.71]
[1766503465408,7.81247521,123.13,123.1,0.71]
[1766503465817,7.81247521,123.14,123.1,0.71]
[1766503467730,7.81247521,123.13,123.1,0.71]
[1766503467906,7.81247521,123.13,123.09,0.75]
[1766503468430,7.81247521,123.14,123.1,0.71]
[1766503468929,7.81247521,123.14,123.11,0.71]
[1766503469114,7.81247521,123.14,123.1,7.81247521]
[1766503469305,7.81247521,123.14,123.1,8.52247521]
[1766503469708,7.81247521,123.14,123.1,0.71]
[1766503470934,10.43767296,123.17,123.11,7.81247521]
[1766503471248,8.11293201,123.26,123.15,8.52247521]
[1766503471405,10.43767296,123.22,123.16,7.81247521]
[1766503471604,7.81247521,123.2,123.15,8.52247521]
[1766503471898,7.81247521,123.2,123.12,0.71]
[1766503471899,7.81247521,123.16,123.12,0.71]
[1766503472626,7.81247521,123.15,123.12,0.71]
[1766503473134,8.11952544,123.16,123.1,15.5]
[1766503473329,7.81247521,123.15,123.1,22.63247521]
[1766503473535,18.25014817,123.15,123.11,0.68]
[1766503474035,7.81247521,123.14,123.11,0.68]
[1766503474220,10.43767296,123.15,123.11,0.68]
[1766503474404,18.25014817,123.15,123.11,0.68]
[1766503474806,7.81247521,123.14,123.11,0.68]
[1766503475714,7.81247521,123.13,123.1,14.82]
[1766503477240,7.81247521,123.12,123.1,14.82]
[1766503477828,7.81247521,123.13,123.1,14.82]
[1766503478728,7.81247521,123.12,123.1,14.82]
[1766503478926,19.36838525,123.15,123.1,15.53]
[1766503478927,11.24798006,123.15,123.1,15.53]
[1766503479240,7.81247521,123.14,123.1,15.53]
[1766503479420,7.81247521,123.13,123.1,15.53]
[1766503480021,7.81247521,123.13,123.1,0.71]
[1766503481531,10.43767296,123.15,123.1,0.71]
[1766503481737,18.25014817,123.15,123.11,0.71]
[1766503482041,7.81247521,123.14,123.11,0.71]
[1766503483951,19.36717531,123.17,123.11,0.71]
[1766503484252,7.81247521,123.15,123.11,0.71]
[1766503484550,11.24798006,123.17,123.11,0.71]
[1766503484842,7.81247521,123.15,123.11,0.71]
[1766503485348,7.81247521,123.14,123.11,0.71]
[1766503486837,8.11987132,123.16,123.11,0.71]
[1766503487375,10.43767296,123.18,123.14,0.71]
[1766503487518,18.25014817,123.18,123.14,0.71]
[1766503487719,18.55587437,123.18,123.12,0.71]
[1766503488338,7.81247521,123.16,123.12,0.71]
[1766503488645,10.43767296,123.18,123.13,7.81247521]
[1766503488841,10.43767296,123.18,123.14,0.71]
[1766503489043,7.81247521,123.17,123.14,0.71]
[1766503491441,18.25014817,123.18,123.14,0.71]
[1766503491652,7.81247521,123.2,123.15,7.81247521]
[1766503491853,28.39831645,123.25,123.17,0.71]
[1766503492055,7.81247521,123.22,123.18,0.71]
[1766503492245,7.81247521,123.21,123.18,0.71]
[1766503492442,7.81247521,123.19,123.14,18.25014817]
[1766503492748,7.81247521,123.19,123.15,0.71]
[1766503495156,8.11625658,123.21,123.15,0.71]
[1766503495341,7.81247521,123.19,123.15,0.71]
[1766503495944,3.00243763,123.19,123.15,0.71]
[1766503496144,3.00243763,123.19,123.15,3.00243763]
[1766503496341,3.00243763,123.16,123.13,0.71]
[1766503496729,8.9281962,123.19,123.13,0.71]
[1766503496936,3.00243763,123.17,123.13,0.71]
[1766503497660,3.00243763,123.16,123.13,0.71]
[1766503498055,8.9281962,123.19,123.13,0.71]
[1766503498258,3.00243763,123.16,123.12,14.82]
[1766503498554,8.11837695,123.18,123.12,14.82]
[1766503498555,3.00243763,123.18,123.13,0.71]
[1766503498855,19.36554219,123.19,123.13,0.71]
[1766503499069,3.00243763,123.17,123.13,0.71]
[1766503499560,3.00243763,123.16,123.12,15.53]
[1766503500656,3.00243763,123.17,123.12,18.53243763]
[1766503502055,3.00243763,123.16,123.12,15.53]
[1766503502258,3.00243763,123.15,123.12,15.53]
[1766503502641,3.00243763,123.14,123.1,0.71]
[1766503502842,3.00243763,123.13,123.1,0.71]
[1766503503357,3.00243763,123.13,123.09,0.75]
[1766503503549,3.00243763,123.12,123.09,0.75]
[1766503503763,3.00243763,123.13,123.09,0.75]
[1766503505651,3.00243763,123.12,123.09,0.75]
[1766503506456,10.43767296,123.15,123.11,0.71]
[1766503506947,3.00243763,123.18,123.14,0.68]
[1766503507154,0.8103071,123.21,123.15,0.68]
[1766503507155,3.00243763,123.19,123.15,0.68]
[1766503507354,10.43767296,123.18,123.14,3.00243763]
[1766503507548,10.43767296,123.18,123.14,3.68243763]
[1766503507750,13.44011059,123.18,123.14,0.68]
[1766503508261,3.00243763,123.17,123.09,11.29008664]
[1766503508454,3.00243763,123.15,123.11,0.68]
[1766503508848,10.43767296,123.16,123.12,0.68]
[1766503509166,3.00243763,123.16,123.12,0.68]
[1766503509660,11.24798006,123.18,123.12,0.68]
[1766503509846,3.00243763,123.16,123.12,0.68]
[1766503510042,11.24798006,123.18,123.12,0.68]
[1766503510256,1.92226277,123.16,123.12,0.68]
[1766503511647,10.43767296,123.18,123.14,0.68]
[1766503511849,12.35993573,123.19,123.15,0.68]
[1766503512071,1.92226277,123.17,123.12,0.68]
[1766503512368,1.92226277,123.16,123.12,0.68]
[1766503512549,1.92226277,123.17,123.12,1.92226277]
[1766503512748,1.92226277,123.17,123.13,0.68]
[1766503512958,12.35993573,123.18,123.13,0.68]
[1766503513570,1.92226277,123.17,123.13,0.68]
[1766503515766,10.43767296,123.18,123.13,1.92226277]
[1766503515966,15.24195246,123.18,123.14,0.68]
[1766503516172,4.8042795,123.19,123.15,0.68]
[1766503517445,4.8042795,123.18,123.15,0.68]
[1766503517643,23.35888866,123.2,123.12,0.68]
[1766503517874,4.8042795,123.13,123.09,0.72]
[1766503518771,4.8042795,123.12,123.09,0.72]
[1766503518972,4.8042795,123.11,123.09,0.72]
[1766503519270,4.8042795,123.1,123.09,0.04]
[1766503519958,4.8042795,123.11,123.09,0.04]
[1766503520161,10.43767296,123.12,123.09,0.04]
[1766503520354,4.8042795,123.11,123.09,0.04]
[1766503520556,4.8042795,123.1,123.09,0.04]
[1766503521167,4.8042795,123.1,123.06,0.2]
[1766503521370,4.8042795,123.09,123.06,0.2]
[1766503521751,4.8042795,123.08,123.06,0.2]
[1766503522159,4.8042795,123.09,123.07,0.68]
[1766503522558,4.8042795,123.08,123.06,0.2]
[1766503522752,4.8042795,123.07,123.06,0.2]
[1766503524680,10.43767296,123.08,123.04,4.61994037]
[1766503524681,4.8042795,123.05,123.04,4.61994037]
[1766503524978,4.8042795,123.06,123.04,4.61994037]
[1766503525281,4.8042795,123.07,123.04,4.61994037]
[1766503525485,4.8042795,123.05,123.04,4.61994037]
[1766503525778,15.24195246,123.05,123.0,0.2]
[1766503525986,4.8042795,123.02,123.0,0.2]
[1766503526291,10.43767296,123.05,123.01,0.68]
[1766503526465,4.8042795,123.04,123.01,0.68]
[1766503527283,4.8042795,123.03,123.0,0.88]
[1766503530262,0.8103071,123.05,123.0,0.2]
[1766503530460,4.8042795,123.01,123.0,0.2]
[1766503532690,4.8042795,123.02,123.0,0.2]
[1766503533569,4.8042795,123.01,123.0,0.2]
[1766503534165,4.8042795,123.01,123.0,0.89]
[1766503534364,4.8042795,123.02,123.0,0.89]
[1766503534871,4.8042795,123.02,123.0,0.2]
[1766503535281,11.24798006,123.03,123.0,0.2]
[1766503535466,15.24195246,123.04,123.01,0.69]
[1766503536092,12.36395223,123.04,123.01,0.69]
[1766503536589,1.92627927,123.02,123.0,0.2]
[1766503536770,1.92627927,123.03,123.0,0.2]
[1766503537287,1.92627927,123.02,123.0,0.2]
[1766503538770,1.92627927,123.03,123.0,0.86]
[1766503541785,10.43767296,123.04,123.0,0.86]
[1766503541996,1.92627927,123.03,123.0,0.86]
[1766503544896,11.24798006,123.07,123.0,0.2]
[1766503545192,2.64627927,123.09,123.01,0.66]
[1766503545396,2.64627927,123.09,123.04,2.58627927]
[1766503545698,1.92627927,123.08,123.04,0.66]
[1766503546103,1.92627927,123.06,123.02,1.92627927]
[1766503546405,2.64627927,123.06,123.02,0.66]
[1766503546572,1.92627927,123.05,123.02,0.66]
[1766503546772,10.43767296,123.07,123.03,1.92627927]
[1766503547084,10.43767296,123.08,123.05,0.66]
[1766503547283,2.64627927,123.09,123.05,0.66]
[1766503547799,2.64627927,123.07,123.02,2.58627927]
[1766503548002,2.64627927,123.07,123.03,0.66]
[1766503548202,0.72,123.1,123.04,1.92627927]
[1766503548406,2.64627927,123.09,123.05,0.66]
[1766503548699,1.92627927,123.08,123.04,1.92627927]
[1766503548897,1.92627927,123.07,123.03,2.58627927]
[1766503550001,5.53315596,123.07,123.03,0.66]
[1766503550505,0.72,123.07,123.03,0.66]
[1766503550803,5.53315596,123.07,123.03,0.66]
[1766503552301,4.81315596,123.05,123.02,0.66]
[1766503552799,5.53315596,123.06,123.02,0.66]
[1766503553484,4.81315596,123.07,123.03,4.81315596]
[1766503553681,4.81315596,123.07,123.03,5.47315596]
[1766503554182,4.81315596,123.05,123.01,0.66]
[1766503554389,4.81315596,123.05,123.01,5.47315596]
[1766503554896,4.81315596,123.05,123.01,4.81315596]
[1766503555200,5.53315596,123.05,123.01,4.81315596]
[1766503555381,5.53315596,123.05,123.01,0.66]
[1766503555691,10.43767296,123.08,123.02,4.81315596]
[1766503555870,10.43767296,123.08,123.01,8.12930015]
[1766503555871,4.81315596,123.07,123.04,0.66]
[1766503556076,5.53315596,123.07,123.04,0.66]
[1766503556398,5.53315596,123.07,123.03,5.47315596]
[1766503556780,5.53315596,123.07,123.03,0.66]
[1766503557881,5.53315596,123.06,123.02,0.66]
[1766503558282,4.81315596,123.05,123.02,0.66]
[1766503558585,4.81315596,123.05,123.01,0.66]
[1766503559004,4.81315596,123.03,123.0,0.2]
[1766503559205,4.81315596,123.04,123.0,0.86]
[1766503560077,4.81315596,123.04,123.0,5.67315596]